bitfinex-derivatives/quotes_SOLF0:USTF0_20250818
["timestamp","ask_amount","ask_price","bid_price","bid_amount"]
[1755534364640,4.02868552,183.39,183.32,5.4517]
[1755534364941,3.09,183.4,183.29,9.02101221]
[1755534365143,3.09,183.4,183.34,5.4511]
[1755534365343,3.09,183.4,183.34,8.4511]
[1755534367140,3.09,183.4,183.3,6.02101221]
[1755534367745,54.0,183.41,183.31,3.0]
[1755534369044,54.0,183.41,183.35,3.0]
[1755534369343,54.0,183.45,183.37,5.4501]
[1755534369542,54.0,183.45,183.35,3.0]
[1755534370043,54.0,183.45,183.37,5.4502]
[1755534370635,7.1205519,183.44,183.32,6.02101221]
[1755534370840,4.03064816,183.43,183.32,6.02101221]
[1755534371040,3.09,183.44,183.32,6.02101221]
[1755534371232,4.03132249,183.43,183.32,6.02101221]
[1755534371437,3.09,183.44,183.34,5.4509]
[1755534371637,3.09,183.42,183.32,6.02101221]
[1755534372043,3.09,183.4,183.32,6.02101221]
[1755534373139,3.09,183.4,183.31,3.0]
[1755534373441,3.09,183.38,183.28,6.02101221]
[1755534373736,3.09,183.38,183.28,5.4527]
[1755534373947,3.09,183.38,183.27,3.0]
[1755534374444,3.09,183.36,183.27,3.0]
[1755534374648,4.03412262,183.35,183.25,6.02101221]
[1755534374847,3.09,183.34,183.25,6.02101221]
[1755534375048,3.09,183.34,183.26,5.4535]
[1755534375846,3.09,183.34,183.24,5.4539]
[1755534376142,4.03388704,183.33,183.24,5.4539]
[1755534376345,3.09,183.34,183.24,5.4539]
[1755534376547,4.03303759,183.33,183.24,5.4539]
[1755534376743,3.09,183.34,183.24,5.4539]
[1755534376948,4.03304168,183.33,183.24,5.4539]
[1755534377148,3.09,183.34,183.24,5.4539]
[1755534377447,4.03196199,183.33,183.25,5.4538]
[1755534377647,3.09,183.34,183.25,5.4538]
[1755534377849,4.03196125,183.33,183.25,5.4538]
[1755534378045,3.09,183.34,183.25,5.4538]
[1755534378246,4.03127631,183.33,183.25,5.4538]
[1755534378446,3.09,183.34,183.25,5.4538]
[1755534378646,4.03127705,183.33,183.25,5.4538]
[1755534378847,3.09,183.34,183.24,5.454]
[1755534379043,54.0,183.37,183.23,3.0]
[1755534379044,3.09,183.32,183.23,3.0]
[1755534379240,3.09,183.3,183.2,5.4551]
[1755534379444,4.03187164,183.29,183.2,5.4551]
[1755534379639,3.09,183.3,183.2,5.4551]
[1755534379843,4.03187164,183.29,183.2,5.4551]
[1755534380046,3.09,183.3,183.2,5.4551]
[1755534380247,4.03053621,183.29,183.2,5.4551]
[1755534380450,3.09,183.3,183.2,5.4551]
[1755534380746,3.09,183.28,183.21,5.455]
[1755534381847,3.09,183.28,183.19,3.0]
[1755534381848,3.09,183.28,183.2,5.4552]
[1755534382252,3.09,183.28,183.21,5.4549]
[1755534382851,3.09,183.28,183.19,3.0]
[1755534383452,3.09,183.28,183.24,8.544]
[1755534383853,140.3,183.3,183.25,5.4538]
[1755534384150,140.3,183.3,183.25,8.5438]
[1755534384446,137.38,183.3,183.26,8.5433]
[1755534384650,140.3,183.3,183.26,3.09]
[1755534384950,140.3,183.3,183.22,3.09]
[1755534385354,140.3,183.3,183.25,8.5436]
[1755534385952,2.92,183.29,183.21,9.11101221]
[1755534386249,2.92,183.29,183.21,3.09]
[1755534387448,2.92,183.29,183.23,5.4543]
[1755534388452,2.92,183.29,183.24,5.454]
[1755534388651,2.92,183.3,183.21,3.09]
[1755534389054,2.92,183.3,183.22,3.09]
[1755534390249,2.92,183.3,183.24,5.4541]
[1755534390454,2.92,183.3,183.22,3.09]
[1755534391453,2.92,183.29,183.25,5.4536]
[1755534391757,2.92,183.29,183.22,3.09]
[1755534392358,2.92,183.29,183.24,5.4539]
[1755534392951,2.92,183.3,183.24,5.4539]
[1755534393146,137.36,183.32,183.25,5.4537]
[1755534393457,6.94646036,183.31,183.25,5.4537]
[1755534393757,2.92,183.31,183.25,5.4537]
[1755534394359,2.92,183.31,183.21,6.02101221]
[1755534394360,4.02814045,183.3,183.19,3.09]
[1755534394565,6.94822921,183.29,183.19,3.09]
[1755534394857,2.92,183.28,183.19,3.09]
[1755534396454,2.92,183.27,183.23,5.4543]
[1755534396655,2.92,183.27,183.23,8.5443]
[1755534398257,2.92,183.3,183.23,5.4543]
[1755534398457,4.03075089,183.29,183.23,5.4543]
[1755534398657,2.92,183.27,183.21,5.4549]
[1755534398858,2.92,183.27,183.19,3.09]
[1755534400263,56.92,183.31,183.19,3.09]
[1755534400560,56.92,183.31,183.22,6.02101221]
[1755534400764,56.92,183.31,183.25,5.4535]
[1755534401063,4.0291307,183.3,183.23,3.09]
[1755534401259,56.92,183.31,183.27,5.4531]
[1755534401459,137.36,183.32,183.1,366.36]
[1755534401460,369.32,183.37,183.24,3.09]
[1755534401660,4.0311776,183.36,183.32,3.09]
[1755534401962,140.26,183.41,183.35,5.4506]
[1755534402165,4.01316432,183.4,183.35,5.4506]
[1755534402363,2.92,183.38,183.35,5.4506]
[1755534403262,2.92,183.38,183.34,5.4511]
[1755534403458,2.92,183.37,183.34,5.4511]
[1755534403966,2.92,183.37,183.33,5.4513]
[1755534404169,19.27,183.39,183.28,3.09]
[1755534404361,2.92,183.37,183.28,3.09]
[1755534404565,4.01289519,183.36,183.28,3.09]
[1755534405457,2.92,183.35,183.23,3.09]
[1755534405660,2.92,183.33,183.23,3.09]
[1755534405861,4.01289519,183.32,183.23,3.09]
[1755534406055,2.92,183.33,183.23,3.09]
[1755534406461,2.92,183.33,183.26,5.4533]
[1755534407564,2.92,183.33,183.27,5.4532]
[1755534408076,2.92,183.33,183.28,5.4529]
[1755534408365,2.92,183.33,183.26,3.09]
[1755534409171,2.92,183.33,183.27,5.4532]
[1755534409371,2.92,183.33,183.26,3.09]
[1755534409864,2.92,183.33,183.26,8.5434]
[1755534410459,2.92,183.33,183.27,5.4532]
[1755534411263,4.0173921,183.32,183.22,9.11101221]
[1755534411463,2.92,183.33,183.22,9.11101221]
[1755534411464,2.92,183.3,183.22,3.09]
[1755534411671,4.01761932,183.29,183.22,3.09]
[1755534411866,2.92,183.3,183.22,3.09]
[1755534412170,4.01879685,183.29,183.22,8.5445]
[1755534412359,2.92,183.3,183.22,3.09]
[1755534412562,4.0189088,183.29,183.22,3.09]
[1755534412760,2.92,183.3,183.22,3.09]
[1755534412959,4.01908662,183.29,183.22,3.09]
[1755534413269,2.92,183.3,183.22,3.09]
[1755534413465,4.02014381,183.29,183.22,3.09]
[1755534413673,2.92,183.3,183.22,3.09]
[1755534413965,4.02014381,183.29,183.23,5.4542]
[1755534414170,4.02248129,183.28,183.23,5.4542]
[1755534414370,56.92,183.3,183.23,5.4542]
[1755534414570,4.02248222,183.29,183.23,5.4542]
[1755534414770,7.07248222,183.28,183.23,5.4542]
[1755534414969,3.05,183.28,183.23,5.4542]
[1755534415163,4.02524855,183.27,183.23,5.4542]
[1755534415366,3.05,183.26,183.19,2.93]
[1755534415972,3.05,183.25,183.21,5.4548]
[1755534416365,3.05,183.25,183.22,5.4545]
[1755534416572,140.29,183.27,183.22,8.3845]
[1755534416776,4.02774966,183.26,183.22,8.3845]
[1755534416967,140.29,183.27,183.22,8.3845]
[1755534417275,4.02770171,183.26,183.19,2.93]
[1755534417476,3.05,183.33,183.19,2.93]
[1755534417677,3.05,183.31,183.24,2.93]
[1755534417875,4.02864336,183.3,183.24,2.93]
[1755534418069,3.05,183.31,183.24,2.93]
[1755534418070,3.05,183.31,183.26,5.4533]
[1755534418270,4.03050864,183.3,183.24,2.93]
[1755534418579,4.03050864,183.29,183.26,2.93]
[1755534418769,3.05,183.31,183.18,6.02101221]
[1755534419071,4.03050864,183.3,183.23,2.93]
[1755534419274,7.08050864,183.29,183.22,5.4545]
[1755534419471,3.05,183.27,183.19,2.93]
[1755534419778,4.03050864,183.26,183.19,2.93]
[1755534419978,3.05,183.24,183.18,5.4557]
[1755534420178,4.03050864,183.23,183.12,6.02101221]
[1755534420368,140.29,183.25,183.21,2.93]
[1755534420773,4.03333409,183.24,183.21,2.93]
[1755534420973,4.03333409,183.23,183.22,5.4547]
[1755534421681,137.24,183.25,183.23,5.4542]
[1755534421982,4.03268577,183.24,183.23,5.4542]
[1755534423175,137.22,183.28,183.27,5.4532]
[1755534423380,3.05,183.33,183.27,2.93]
[1755534423582,4.03150491,183.32,183.28,2.93]
[1755534423884,4.03150491,183.31,183.28,2.93]
[1755534424082,4.03150491,183.3,183.29,5.4526]
[1755534425678,4.03150491,183.3,183.29,8.3826]
[1755534425880,137.2,183.34,183.32,5.4517]
[1755534426080,4.03050612,183.33,183.32,5.4517]
[1755534426282,4.03050612,183.33,183.29,2.93]
[1755534426479,4.03050612,183.32,183.29,2.93]
[1755534426678,4.03050612,183.32,183.23,6.02101221]
[1755534426679,4.03050612,183.31,183.3,2.93]
[1755534427485,4.03050612,183.31,183.3,5.4523]
[1755534427780,7.08050612,183.31,183.26,2.93]
[1755534428084,4.03077398,183.3,183.27,2.93]
[1755534428281,3.05,183.31,183.27,2.93]
[1755534428481,4.03083726,183.3,183.27,2.93]
[1755534428783,3.05,183.31,183.29,5.4525]
[1755534429583,3.05,183.33,183.3,5.4523]
[1755534429784,4.0304245,183.32,183.3,5.4523]
[1755534429984,4.0304245,183.31,183.3,5.4523]
[1755534432883,4.0304245,183.31,183.29,5.4525]
[1755534433188,3.05,183.32,183.29,5.4525]
[1755534433390,4.03429272,183.31,183.23,6.02101221]
[1755534433584,3.05,183.32,183.29,5.4526]
[1755534433888,4.03445393,183.31,183.29,5.4526]
[1755534435380,4.03439987,183.3,183.2,2.93]
[1755534435585,141.17439987,183.29,183.2,2.93]
[1755534435784,137.14,183.29,183.2,2.93]
[1755534435990,7.08495573,183.28,183.2,2.93]
[1755534436191,4.03513498,183.27,183.2,2.93]
[1755534436489,4.03513498,183.26,183.2,2.93]
[1755534436691,3.05,183.28,183.2,2.93]
[1755534436892,4.03528424,183.27,183.22,5.4545]
[1755534437190,7.08528424,183.26,183.22,5.4545]
[1755534437385,3.05,183.26,183.22,5.4545]
[1755534438389,3.05,183.28,183.22,5.4545]
[1755534438584,3.05,183.26,183.16,2.93]
[1755534438788,3.05,183.24,183.16,2.93]
[1755534438990,141.15498709,183.23,183.16,2.93]
[1755534439191,7.08498709,183.22,183.18,5.4556]
[1755534439391,3.05,183.22,183.18,5.4556]
[1755534439792,3.05,183.21,183.18,5.4556]
[1755534441093,137.12,183.23,183.12,2.93]
[1755534441094,4.03361289,183.2,183.12,2.93]
[1755534441299,3.05,183.19,183.12,2.93]
[1755534442398,3.03,183.18,183.15,5.4566]
[1755534442792,54.0,183.22,183.13,2.93]
[1755534442991,54.0,183.22,183.09,2.93]
[1755534442992,3.03,183.2,183.09,2.93]
[1755534443194,3.03,183.18,183.09,2.93]
[1755534443395,3.03,183.16,183.12,5.4575]
[1755534443698,3.03,183.16,183.09,2.93]
[1755534443699,137.12,183.15,183.09,2.93]
[1755534444593,137.12,183.15,183.11,5.4578]
[1755534444798,140.15,183.15,183.09,2.93]
[1755534445199,140.15,183.15,183.12,5.4575]
[1755534445896,140.15,183.15,183.13,5.4574]
[1755534447298,3.03,183.14,183.12,5.4576]
[1755534447500,3.03,183.13,183.12,5.4576]
[1755534447697,137.12,183.15,183.12,5.4576]
[1755534447897,140.15,183.15,183.12,5.4576]
[1755534448097,140.15,183.15,183.13,5.4574]
[1755534448300,3.03,183.14,183.13,5.4574]
[1755534449697,3.03,183.14,183.12,5.4576]
[1755534450494,3.03,183.13,183.12,5.4576]
[1755534450701,140.15,183.15,183.13,5.4573]
[1755534451203,140.15,183.15,183.12,5.4576]
[1755534451596,3.03,183.14,183.12,5.4576]
[1755534453894,3.03,183.13,183.12,5.4576]
[1755534454904,137.12,183.15,183.12,5.4576]
[1755534455097,140.15,183.15,183.12,5.4576]
[1755534455295,137.12,183.15,183.07,3.82579824]
[1755534455504,137.12,183.15,183.08,2.93]
[1755534455905,137.12,183.15,183.11,5.4578]
[1755534456104,3.03,183.14,183.11,5.4578]
[1755534458505,3.03,183.14,183.1,5.4582]
[1755534458806,16.35,183.14,183.03,2.93]
[1755534459000,3.03,183.13,183.03,2.93]
[1755534459708,137.08,183.12,183.04,2.93]
[1755534459902,3.03,183.13,183.04,2.93]
[1755534460103,137.08,183.12,183.07,2.93]
[1755534460303,137.08,183.12,183.08,2.93]
[1755534460497,140.11,183.12,183.08,2.93]
[1755534460701,3.03,183.11,183.05,2.93]
[1755534461899,3.03,183.11,183.06,5.4593]
[1755534462104,137.08,183.12,183.06,5.4593]
[1755534462309,3.03,183.09,183.06,5.4593]
[1755534463307,137.08,183.12,183.06,5.4593]
[1755534463509,137.08,183.12,183.01,2.93]
[1755534463510,3.03,183.11,183.01,2.93]
[1755534463810,3.03,183.09,183.01,2.93]
[1755534464403,3.03,183.09,183.05,5.4597]
[1755534464602,3.03,183.09,183.01,2.93]
[1755534465806,3.03,183.09,183.05,5.4596]
[1755534466009,54.0,183.11,183.05,5.4596]
[1755534466010,3.03,183.08,183.05,5.4596]
[1755534466212,3.03,183.08,183.01,2.93]
[1755534466411,6.85579824,183.08,182.98,2.93]
[1755534466811,3.03,183.07,183.02,5.4607]
[1755534467114,3.03,183.05,183.02,5.4607]
[1755534467312,3.03,183.05,182.99,5.4615]
[1755534467512,3.03,183.05,182.95,3.82579824]
[1755534467814,3.03,183.05,182.99,5.4614]
[1755534468213,3.03,183.05,182.96,2.93]
[1755534468409,3.03,183.05,183.0,5.4613]
[1755534468604,137.08,183.06,182.96,2.93]
[1755534468810,3.03,183.04,182.96,2.93]
[1755534469011,3.03,183.04,182.99,5.4615]
[1755534469211,3.03,183.03,182.99,5.4615]
[1755534469712,3.03,183.03,182.92,0.95102755]
[1755534470316,3.03,183.03,182.96,5.4624]
[1755534471218,16.35,183.03,182.95,5.4627]
[1755534471420,3.03,183.02,182.91,6.75579824]
[1755534472321,2.9,183.0,182.9,3.1]
[1755534473416,137.1,183.01,182.93,3.1]
[1755534474517,140.0,183.01,182.93,3.1]
[1755534475614,137.1,183.01,182.96,5.4623]
[1755534475814,2.9,183.0,182.96,5.4623]
[1755534476216,2.9,182.99,182.93,3.1]
[1755534476417,2.9,182.99,182.89,3.1]
[1755534477321,137.1,183.01,182.86,0.95137854]
[1755534477322,3.82579824,182.96,182.86,0.95137854]
[1755534477520,6.72579824,182.96,182.86,4.05137854]
[1755534478314,3.82579824,182.96,182.91,5.4638]
[1755534478516,6.9023374,182.95,182.87,3.1]
[1755534478723,137.1,182.94,182.87,3.1]
[1755534479724,2.9,182.93,182.87,3.1]
[1755534480220,2.9,182.93,182.9,5.4641]
[1755534480428,2.9,182.93,182.87,3.1]
[1755534480832,137.1,182.94,182.91,5.464]
[1755534481130,2.9,182.93,182.87,3.1]
[1755534481323,2.9,182.93,182.9,5.4643]
[1755534482029,2.9,182.93,182.87,3.1]
[1755534482631,137.12,182.96,182.87,3.1]
[1755534482827,2.9,182.94,182.87,3.1]
[1755534483025,2.9,182.94,182.88,5.4647]
[1755534483224,4.00370231,182.93,182.88,5.4647]
[1755534483527,140.02,182.96,182.92,5.4637]
[1755534483725,4.00568568,182.95,182.89,3.1]
[1755534483927,137.12,182.96,182.89,3.1]
[1755534484927,367.08,183.01,182.92,3.1]
[1755534485124,141.12473606,183.0,182.92,3.1]
[1755534485329,4.00473606,182.99,182.92,3.1]
[1755534485625,4.00597634,182.98,182.93,5.4634]
[1755534485826,137.12,183.0,182.87,3.82579824]
[1755534485827,6.90597634,182.97,182.89,3.1]
[1755534486026,2.9,182.97,182.89,3.1]
[1755534486424,2.9,182.97,182.91,3.1]
[1755534486630,153.47,183.0,182.91,3.1]
[1755534486819,4.00708696,182.99,182.91,3.1]
[1755534487025,4.00708696,182.98,182.91,3.1]
[1755534487326,137.12,183.0,182.95,5.4625]
[1755534487526,137.12,183.0,182.94,3.1]
[1755534487527,2.9,182.98,182.94,3.1]
[1755534487728,4.00766996,182.99,182.9,6.92579824]
[1755534487729,4.00766996,182.97,182.9,6.92579824]
[1755534487924,2.9,182.99,182.94,5.463]
[1755534488125,137.12,183.0,182.94,5.463]
[1755534488126,4.00781144,182.98,182.94,5.463]
[1755534488326,6.90781144,182.97,182.94,5.463]
[1755534488528,6.90781144,182.97,182.95,5.4628]
[1755534488529,2.9,182.97,182.95,5.4628]
[1755534488730,2.9,182.97,182.9,6.92579824]
[1755534489132,4.00797912,182.96,182.9,6.92579824]
[1755534489426,2.9,182.97,182.9,6.92579824]
[1755534489631,4.00817967,182.96,182.9,6.92579824]
[1755534489825,2.9,182.97,182.9,6.92579824]
[1755534490031,4.00817967,182.96,182.9,6.92579824]
[1755534490229,2.9,182.97,182.9,6.92579824]
[1755534490426,4.00842149,182.96,182.9,3.1]
[1755534490622,6.90842149,182.95,182.92,5.4636]
[1755534490826,2.9,182.95,182.92,5.4636]
[1755534491034,137.12,182.94,182.92,5.4636]
[1755534491635,137.12,182.94,182.87,3.82579824]
[1755534491832,4.02605514,182.93,182.85,3.1]
[1755534492031,137.12,182.94,182.85,3.1]
[1755534492327,4.02623344,182.93,182.85,3.1]
[1755534492531,137.12,182.94,182.85,3.1]
[1755534492932,137.12,182.94,182.84,3.82579824]
[1755534493237,137.1,182.94,182.88,3.1]
[1755534493629,2.9,182.96,182.88,3.1]
[1755534493928,54.0,183.0,182.96,5.4623]
[1755534494127,144.04577199,182.99,182.93,3.82579824]
[1755534494328,140.02,182.99,182.93,3.82579824]
[1755534494526,137.12,182.99,182.91,6.92579824]
[1755534495032,137.12,182.99,182.91,3.82579824]
[1755534495236,137.12,182.99,182.92,3.1]
[1755534495637,137.12,182.99,182.84,14.75759824]
[1755534495638,4.02771893,182.98,182.9,3.82579824]
[1755534495838,140.02,182.99,182.9,3.82579824]
[1755534496037,4.02825678,182.98,182.93,5.4631]
[1755534496237,2.9,182.95,182.89,3.1]
[1755534496433,2.9,182.95,182.87,3.82579824]
[1755534496838,2.9,182.95,182.87,6.92579824]
[1755534497733,2.9,182.95,182.89,5.4643]
[1755534497935,2.9,182.95,182.87,3.1]
[1755534498439,2.9,182.94,182.87,3.1]
[1755534498739,137.1,182.93,182.92,5.4637]
[1755534499045,60.72579824,182.98,182.87,3.1]
[1755534499235,141.13182653,182.97,182.87,3.1]
[1755534499436,2.9,182.95,182.87,3.1]
[1755534500138,2.9,182.95,182.93,5.4632]
[1755534500340,137.1,182.97,182.93,5.4632]
[1755534500541,2.9,182.95,182.93,5.4632]
[1755534500734,367.08,183.01,182.92,3.1]
[1755534500934,4.03433932,183.0,182.94,3.82579824]
[1755534501132,6.93433932,182.99,182.94,6.92579824]
[1755534501331,2.9,182.99,182.97,5.4619]
[1755534501643,367.08,183.01,182.94,6.92579824]
[1755534501844,4.03572578,183.0,182.99,5.4616]
[1755534502038,3.01,183.07,182.98,2.98]
[1755534502244,4.03543736,183.06,183.0,3.82579824]
[1755534502444,140.11,183.07,183.04,5.4599]
[1755534503046,140.11,183.07,183.05,5.4597]
[1755534503435,4.02692369,183.06,183.0,3.82579824]
[1755534503644,3.01,183.11,183.01,2.98]
[1755534503839,4.02692369,183.1,183.03,3.82579824]
[1755534504043,4.02692369,183.09,183.03,3.82579824]
[1755534504243,137.08,183.13,183.06,3.82579824]
[1755534504439,4.02764677,183.12,183.08,5.4586]
[1755534504643,7.03764677,183.11,183.08,5.4586]
[1755534504843,3.01,183.11,183.06,6.80579824]
[1755534505048,3.01,183.11,183.09,5.4585]
[1755534505244,4.02554561,183.1,183.02,3.82579824]
[1755534505448,3.01,183.11,183.02,3.82579824]
[1755534505449,4.02747767,183.09,183.02,5.4606]
[1755534505752,7.03747767,183.08,183.02,5.4606]
[1755534506049,7.03747767,183.08,183.01,5.4609]
[1755534506050,3.01,183.05,183.01,5.4609]
[1755534506246,3.01,183.03,182.96,6.80579824]
[1755534506448,3.01,183.03,182.96,2.98]
[1755534506746,4.03048672,183.02,182.96,2.98]
[1755534507050,3.01,183.03,182.96,2.98]
[1755534507247,4.03087955,183.02,182.96,2.98]
[1755534507446,4.03087955,183.01,182.96,2.98]
[1755534507646,3.01,183.06,182.98,5.4618]
[1755534507850,3.01,183.04,182.91,2.98]
[1755534508043,3.01,183.02,182.91,2.98]
[1755534508245,4.03242607,183.01,182.94,5.4631]
[1755534508446,4.03242607,183.0,182.91,2.98]
[1755534508749,4.03242607,182.99,182.96,5.4625]
[1755534508949,4.03242607,182.98,182.96,5.4625]
[1755534509145,137.04,183.0,182.96,5.4625]
[1755534509349,137.04,183.0,182.93,2.98]
[1755534510053,140.05,183.0,182.93,2.98]
[1755534510645,4.03677086,182.99,182.95,5.4625]
[1755534510852,4.03677086,182.98,182.88,113.63161134]
[1755534511154,137.04,183.0,182.88,113.63161134]
[1755534511447,4.03740797,182.99,182.88,113.63161134]
[1755534511651,7.04740797,182.98,182.89,2.98]
[1755534511956,3.01,182.98,182.89,2.98]
[1755534512952,4.03907602,182.97,182.82,0.95163871]
[1755534513162,3.01,182.96,182.83,2.98]
[1755534513452,3.01,182.94,182.87,5.4649]
[1755534513755,4.03936211,182.93,182.83,2.98]
[1755534514550,4.03936211,182.93,182.9,5.464]
[1755534514747,4.03936211,182.93,182.86,2.98]
[1755534514943,4.03936211,182.93,182.86,9.01518783]
[1755534515154,143.27,182.99,182.87,2.98]
[1755534515355,8.53448578,182.98,182.87,2.98]
[1755534515552,4.04003168,182.97,182.94,5.4628]
[1755534515753,143.29,183.02,182.94,5.4628]
[1755534515953,8.53429062,183.01,182.94,5.4628]
[1755534516149,4.03999165,183.0,182.95,5.4627]
[1755534516350,7.04999165,182.99,182.91,2.98]
[1755534516551,4.03999165,182.98,182.91,2.98]
[1755534516760,3.01,183.03,182.91,2.98]
[1755534517057,4.03926862,183.02,182.91,2.98]
[1755534517258,3.01,183.03,183.0,5.4613]
[1755534517462,3.01,183.03,182.95,2.98]
[1755534517653,140.24,183.04,182.95,2.98]
[1755534517860,4.03820117,183.03,182.95,2.98]
[1755534518052,140.24,183.04,182.95,2.98]
[1755534518252,4.0378404,183.03,182.95,2.98]
[1755534518453,3.01,183.03,182.99,5.4615]
[1755534518649,3.01,183.02,182.99,5.4615]
[1755534518958,3.01,183.02,182.95,2.98]
[1755534519560,140.24,183.04,182.95,2.98]
[1755534519756,140.24,183.04,182.95,9.01518783]
[1755534519956,140.24,183.04,182.96,2.98]
[1755534520256,3.01,183.1,183.0,2.98]
[1755534520956,4.03441215,183.09,183.0,2.98]
[1755534521157,4.03500487,183.08,183.0,2.98]
[1755534521353,3.01,183.09,183.0,2.98]
[1755534521550,4.22555415,183.08,183.0,2.98]
[1755534521751,3.01,183.09,183.0,2.98]
[1755534521955,4.22555415,183.08,183.05,5.4595]
[1755534522155,3.01,183.11,183.05,5.4595]
[1755534522354,3.01,183.09,183.05,5.4595]
[1755534522555,7.23555415,183.08,183.05,5.4595]
[1755534522757,3.01,183.08,183.05,5.4595]
[1755534523255,3.01,183.08,183.0,2.98]
[1755534523459,4.22404036,183.07,183.0,2.98]
[1755534523763,3.01,183.08,183.0,2.98]
[1755534523965,4.22385582,183.07,183.0,2.98]
[1755534524164,3.01,183.08,183.02,5.4606]
[1755534524365,3.01,183.06,183.02,5.4606]
[1755534524564,3.01,183.06,182.99,6.03518783]
[1755534525859,3.01,183.06,183.01,5.4607]
[1755534526058,3.01,183.06,182.97,2.98]
[1755534526059,4.22346922,183.05,182.97,2.98]
[1755534526265,7.23369308,183.04,182.93,115.37737067]
[1755534526460,4.22369308,183.03,182.96,5.4622]
[1755534526661,3.01,183.01,182.93,115.37737067]
[1755534527360,4.22526154,183.0,182.93,112.39737067]
[1755534527560,7.23526154,182.99,182.93,112.39737067]
[1755534527767,3.01,182.97,182.89,2.98]
[1755534528068,4.22526154,182.96,182.91,5.4637]
[1755534528263,3.01,182.96,182.89,2.98]
[1755534529174,28.48175267,183.03,182.89,2.98]
[1755534529175,3.01,183.02,182.89,2.98]
[1755534529473,8.85492729,183.01,182.89,2.98]
[1755534529673,8.85492729,183.0,182.89,2.98]
[1755534529866,4.22744399,182.99,182.89,2.98]
[1755534530172,4.22744399,182.98,182.89,2.98]
[1755534530373,4.22744399,182.97,182.89,2.98]
[1755534530565,19.36,183.02,182.89,2.98]
[1755534530770,4.22703595,183.01,182.89,2.98]
[1755534531072,4.22703595,183.0,182.89,2.98]
[1755534531268,3.01,182.98,182.95,5.4625]
[1755534531662,16.35,183.02,182.89,2.98]
[1755534531872,19.36,182.99,182.89,2.98]
[1755534532068,2.9,182.97,182.89,2.98]
[1755534532263,4.22716685,182.96,182.91,5.4637]
[1755534532475,7.12752755,182.95,182.89,2.98]
[1755534532771,2.9,182.95,182.89,2.98]
[1755534533369,19.25,182.99,182.89,2.98]
[1755534533561,4.22714617,182.98,182.89,2.98]
[1755534533768,2.9,182.99,182.89,2.98]
[1755534533967,7.12655537,182.98,182.95,5.4626]
[1755534534273,2.9,182.98,182.89,2.98]
[1755534534471,2.9,182.98,182.96,5.4623]
[1755534535268,2.9,182.98,182.97,5.4621]
[1755534535774,2.9,183.0,182.97,5.4621]
[1755534536174,4.22646924,182.99,182.97,5.4621]
[1755534536372,2.9,183.0,182.92,2.98]
[1755534536569,367.1,183.04,182.92,2.98]
[1755534536875,4.22650808,183.03,182.92,2.98]